bitfinex-derivatives/quotes_SOLF0:USTF0_20250712
["timestamp","ask_amount","ask_price","bid_price","bid_amount"]
[1752362772999,3.42,160.35,160.34,3.52]
[1752362773601,3.42,160.35,160.34,9.7543]
[1752362774702,1.53303107,160.36,160.35,6.2342]
[1752362775004,3.42,160.36,160.35,9.7542]
[1752362775799,9.6536,160.37,160.35,9.7542]
[1752362776003,9.6536,160.37,160.36,3.52]
[1752362777406,3.42,160.37,160.36,3.52]
[1752362777601,3.42,160.37,160.36,9.7538]
[1752362778707,9.6534,160.37,160.36,3.52]
[1752362781709,3.42,160.37,160.36,3.52]
[1752362785616,9.6534,160.37,160.36,3.52]
[1752362795225,2.39535252,160.38,160.36,3.52]
[1752362795226,8.62855252,160.38,160.36,3.52]
[1752362795626,12.04855252,160.38,160.36,9.7537]
[1752362795829,3.42,160.38,160.37,3.51]
[1752362796029,3.61,160.39,160.37,3.51]
[1752362796826,1.53262084,160.38,160.37,3.51]
[1752362797031,5.14262084,160.38,160.37,3.51]
[1752362797631,5.14262084,160.38,160.37,9.7434]
[1752362798433,5.14262084,160.38,160.37,3.51]
[1752362798626,11.37562084,160.38,160.37,3.51]
[1752362799231,5.14262084,160.38,160.37,3.51]
[1752362800131,5.14262084,160.38,160.37,9.7434]
[1752362800431,11.37562084,160.38,160.37,3.51]
[1752362801726,11.37562084,160.38,160.36,3.55202896]
[1752362801930,5.14262084,160.37,160.36,3.55202896]
[1752362803832,5.14262084,160.37,160.36,9.78582896]
[1752362806532,5.14262084,160.37,160.36,0.04202896]
[1752362806533,5.14294579,160.37,160.36,0.04202896]
[1752362807625,5.14332492,160.37,160.33,8.73932848]
[1752362807826,5.14332492,160.34,160.33,3.51]
[1752362808829,9.845,160.33,160.32,3.51]
[1752362809131,3.61,160.32,160.31,8.73932848]
[1752362809328,5.14332492,160.32,160.29,5.22932848]
[1752362809530,1.53332492,160.3,160.29,3.51]
[1752362809729,5.14332492,160.3,160.29,3.51]
[1752362812134,5.14332492,160.3,160.29,9.7465]
[1752362812430,5.14332492,160.3,160.29,3.51]
[1752362812631,7.76942492,160.3,160.27,132.24579755]
[1752362812832,3.61,160.29,160.28,3.51]
[1752362813336,3.61,160.29,160.28,9.7469]
[1752362814038,5.14332492,160.29,160.28,9.7469]
[1752362814837,3.61,160.29,160.28,9.7469]
[1752362816434,2.39759478,160.3,160.29,9.7465]
[1752362816638,3.61,160.31,160.29,9.7465]
[1752362816936,3.61,160.31,160.3,3.51]
[1752362818739,3.61,160.31,160.3,9.7461]
[1752362819238,3.61,160.31,160.3,3.51]
[1752362820636,2.43692625,160.32,160.3,3.51]
[1752362820837,2.39759478,160.31,160.3,3.51]
[1752362821141,3.64933147,160.32,160.31,6.2357]
[1752362821338,0.03933147,160.32,160.31,9.7457]
[1752362834647,3.34,160.34,160.32,3.35]
[1752362834851,4.8734326,160.34,160.32,3.35]
[1752362835952,1.5334326,160.34,160.33,6.2347]
[1752362836245,1.5334326,160.34,160.33,9.5847]
[1752362836552,4.8734326,160.34,160.33,9.5847]
[1752362839056,4.8734326,160.34,160.33,3.35]
[1752362839857,4.8734326,160.34,160.33,9.585]
[1752362841359,11.1080326,160.34,160.33,3.35]
[1752362842662,4.8734326,160.34,160.33,3.35]
[1752362843866,3.34,160.34,160.33,9.585]
[1752362844165,11.1080326,160.34,160.33,3.35]
[1752362844459,1.5334326,160.34,160.32,3.35]
[1752362844763,3.34,160.32,160.29,3.35]
[1752362844965,4.8734326,160.3,160.29,3.35]
[1752362846164,4.8734326,160.3,160.29,9.5863]
[1752362846366,4.8734326,160.3,160.29,3.35]
[1752362846661,7.7695326,160.3,160.28,3.35]
[1752362846866,4.8734326,160.29,160.28,3.35]
[1752362848165,4.8734326,160.29,160.28,9.5869]
[1752362852969,4.8734326,160.29,160.28,3.35]
[1752362854166,4.8734326,160.29,160.28,9.5869]
[1752362855870,1.5334326,160.29,160.28,9.5869]
[1752362857869,6.235,160.33,160.29,3.55]
[1752362857870,5.0934326,160.31,160.29,3.55]
[1752362859164,5.0934326,160.31,160.3,6.2361]
[1752362859369,5.0934326,160.31,160.3,9.7861]
[1752362866368,5.0934326,160.31,160.3,3.55]
[1752362866575,5.0934326,160.31,160.29,9.7863]
[1752362866771,3.56,160.3,160.29,9.7863]
[1752362867673,5.0934326,160.3,160.29,9.7863]
[1752362885290,5.0934326,160.31,160.3,9.7859]
[1752362885692,3.56,160.31,160.3,9.7859]
[1752362888893,5.0934326,160.31,160.3,9.7859]
[1752362904416,1.5334326,160.31,160.3,6.2359]
[1752362904714,1.5334326,160.31,160.29,5.23122619]
[1752362904910,1.5334326,160.3,160.29,5.23122619]
[1752362905111,7.7695326,160.3,160.29,5.23122619]
[1752362906616,11.1095326,160.3,160.29,8.61122619]
[1752362907618,11.1095326,160.3,160.29,5.23122619]
[1752362907915,3.34,160.29,160.28,8.61122619]
[1752362908116,4.8734326,160.29,160.28,3.38]
[1752362909114,3.34,160.28,160.27,8.61122619]
[1752362909308,4.8734326,160.28,160.26,14.84872619]
[1752362909515,4.8734326,160.27,160.26,14.84872619]
[1752362910813,4.8734326,160.27,160.26,9.6175]
[1752362912617,3.34,160.27,160.26,9.6175]
[1752362924731,5.0734326,160.28,160.27,6.2373]
[1752362924934,5.0734326,160.28,160.27,9.5873]
[1752362925226,6.2359,160.31,160.29,6.2364]
[1752362925531,558.32014788,160.36,160.3,3.35]
[1752362925532,5.22812418,160.35,160.3,3.35]
[1752362925829,6.2357,160.32,160.3,3.35]
[1752362926032,3.54,160.31,160.3,3.35]
[1752362926629,5.0734326,160.31,160.3,9.5861]
[1752362926828,5.0734326,160.31,160.3,6.2361]
[1752362927030,5.0734326,160.31,160.3,9.5861]
[1752362928929,5.0734326,160.31,160.3,3.35]
[1752362929132,11.3091326,160.31,160.3,3.35]
[1752362929327,5.0734326,160.31,160.3,3.35]
[1752362931428,5.0734326,160.31,160.3,9.5861]
[1752362939939,5.0734326,160.31,160.3,3.35]
[1752362941038,5.0734326,160.31,160.3,9.5861]
[1752362945841,5.0734326,160.31,160.3,3.35]
[1752362947643,11.3091326,160.31,160.3,3.35]
[1752362954454,11.31008162,160.31,160.3,3.35]
[1752362963862,5.07438162,160.31,160.3,3.35]
[1752362967666,5.07438162,160.31,160.3,9.5861]
[1752362972767,5.07418793,160.31,160.3,9.5861]
[1752362981072,5.07417266,160.31,160.3,9.5861]
[1752362990381,1.53417266,160.31,160.3,6.2361]
[1752362992385,5.04417266,160.31,160.3,9.7761]
[1752362993786,3.51,160.31,160.3,9.7761]
[1752362994083,5.04417266,160.32,160.31,9.7757]
[1752362995687,5.04388778,160.32,160.31,9.7757]
[1752362998489,5.04388778,160.32,160.31,3.54]
[1752362999288,11.27928778,160.32,160.31,3.54]
[1752363000490,3.51,160.3,160.28,5.25918987]
[1752363000689,5.04388778,160.3,160.28,5.25918987]
[1752363000891,5.04388778,160.3,160.29,3.54]
[1752363001582,5.04388778,160.3,160.29,9.7765]
[1752363002494,5.04388778,160.3,160.29,3.54]
[1752363004490,11.27998778,160.3,160.28,5.25918987]
[1752363004690,6.97194788,160.37,160.27,3.54]
[1752363004691,3.51,160.28,160.27,3.54]
[1752363004889,5.04388778,160.28,160.27,3.54]
[1752363005092,6.2373,160.27,160.26,3.54]
[1752363005292,5.04388778,160.27,160.26,3.54]
[1752363005493,1.53388778,160.28,160.26,3.54]
[1752363006086,11.28058778,160.29,160.27,6.2373]
[1752363006289,11.28058778,160.29,160.28,3.53]
[1752363013793,5.04388778,160.29,160.28,3.53]
[1752363019198,1.53388778,160.29,160.28,3.53]
[1752363019399,3.48,160.3,160.28,3.53]
[1752363019901,3.48,160.3,160.28,9.7666]
[1752363020104,3.48,160.3,160.29,3.53]
[1752363022801,5.01388778,160.3,160.29,3.53]
[1752363034414,1.53388778,160.3,160.28,6.2366]
[1752363035413,1.53388778,160.3,160.29,6.2365]
[1752363036413,1.53388778,160.3,160.29,9.8065]
[1752363036715,4.96388778,160.31,160.3,6.2361]
[1752363036916,4.96388778,160.31,160.3,9.8061]
[1752363038411,178.58,160.33,160.3,3.57]
[1752363038614,598.51166446,160.38,160.32,3.57]
[1752363038819,4.96388778,160.36,160.32,5.10388778]
[1752363039115,4.96388778,160.36,160.33,3.57]
[1752363039116,3.43,160.35,160.33,3.57]
[1752363039615,3.43,160.35,160.34,6.2345]
[1752363039816,4.96388778,160.37,160.34,3.57]
[1752363040918,4.96388778,160.37,160.35,6.234]
[1752363041219,4.96388778,160.37,160.36,3.57]
[1752363041408,3.43,160.37,160.36,3.57]
[1752363041612,4.96388778,160.37,160.36,3.57]
[1752363044518,11.19728778,160.37,160.36,3.57]
[1752363046124,3.43,160.34,160.32,6.2351]
[1752363046325,6.2342,160.35,160.32,6.2351]
[1752363046326,1.53388778,160.33,160.32,6.2351]
[1752363046626,4.96388778,160.33,160.32,6.2351]
[1752363046818,4.96388778,160.33,160.32,9.8051]
[1752363047026,3.43,160.33,160.32,9.8051]
[1752363048519,1.53388778,160.34,160.33,6.235]
[1752363048725,3.43,160.34,160.33,9.805]
[1752363049315,3.43,160.34,160.33,3.57]
[1752363049520,9.6646,160.34,160.33,3.57]
[1752363049925,3.43,160.33,160.31,3.57]
[1752363050127,11.19928778,160.32,160.31,3.57]
[1752363050720,11.19928778,160.32,160.31,10.00333574]
[1752363051122,4.96388778,160.32,160.31,10.00333574]
[1752363051628,11.19928778,160.32,160.31,10.00333574]
[1752363052624,11.19928778,160.32,160.31,6.43333574]
[1752363054431,4.96388778,160.28,160.27,3.57]
[1752363055527,11.20078778,160.28,160.27,3.57]
[1752363055734,4.96388778,160.28,160.27,3.57]
[1752363060233,4.96388778,160.28,160.27,9.8073]
[1752363060437,1.53388778,160.28,160.27,9.8073]
[1752363060734,4.96388778,160.29,160.28,6.2369]
[1752363060938,4.96388778,160.29,160.28,9.8069]
[1752363062632,3.43,160.29,160.28,9.8069]
[1752363063136,1.53388778,160.3,160.29,3.57]
[1752363063137,4.96388778,160.3,160.29,3.57]
[1752363064634,6.2361,160.31,160.29,3.57]
[1752363064839,3.43,160.31,160.29,3.57]
[1752363065440,3.43,160.31,160.3,9.8061]
[1752363067339,4.98388778,160.32,160.31,6.2357]
[1752363067536,4.98388778,160.32,160.31,9.6157]
[1752363067736,4.98388778,160.33,160.31,3.38]
[1752363067937,4.98388778,160.33,160.32,6.2354]
[1752363068241,4.98388778,160.34,160.32,3.38]
[1752363068936,3.45,160.34,160.32,3.38]
[1752363069137,3.45,160.34,160.33,6.235]
[1752363069338,3.45,160.34,160.33,9.615]
[1752363071944,3.45,160.34,160.33,3.38]
[1752363073043,3.45,160.34,160.33,9.615]
[1752363075946,3.45,160.34,160.33,3.38]
[1752363076141,5.84615473,160.34,160.28,7.63209068]
[1752363076443,3.45,160.33,160.31,3.38]
[1752363076644,6.2359,160.31,160.29,3.38]
[1752363076848,3.45,160.3,160.29,3.38]
[1752363079249,3.45,160.3,160.29,9.6165]
[1752363080856,9.6861,160.3,160.29,3.38]
[1752363082856,3.45,160.3,160.29,3.38]
[1752363083758,3.45,160.3,160.29,9.6165]
[1752363083962,3.45,160.31,160.3,3.38]
[1752363084957,3.45,160.31,160.3,9.6161]
[1752363085762,3.45,160.31,160.3,3.38]
[1752363087161,3.45,160.31,160.3,9.6161]
[1752363089868,3.45,160.32,160.31,6.2357]
[1752363090064,3.45,160.32,160.31,9.6157]
[1752363092370,3.45,160.32,160.31,3.38]
[1752363092570,9.6854,160.32,160.31,3.38]
[1752363092770,11.21946185,160.32,160.31,3.38]
[1752363093173,3.45,160.31,160.3,3.38]
[1752363093368,4.98406185,160.31,160.3,3.38]
[1752363094872,4.98406185,160.31,160.3,9.6161]
[1752363095367,4.98406185,160.32,160.3,9.6161]
[1752363095572,3.45,160.32,160.31,3.38]
[1752363096372,3.45,160.32,160.31,9.6157]
[1752363098669,3.45,160.32,160.31,3.38]
[1752363100873,3.45,160.32,160.31,9.6157]
[1752363101773,3.45,160.32,160.31,3.38]
[1752363108280,3.45,160.32,160.31,9.6157]
[1752363108473,3.35,160.33,160.31,6.2357]
[1752363108678,6.2347,160.34,160.32,3.57]
[1752363109176,6.2343,160.35,160.32,3.57]
[1752363109380,3.35,160.34,160.32,3.57]
[1752363110075,3.35,160.34,160.32,9.8051]
[1752363110274,3.35,160.34,160.33,3.57]
[1752363111180,9.5846,160.34,160.33,3.57]
[1752363111982,3.35,160.35,160.34,3.57]
[1752363112886,3.35,160.35,160.34,9.8046]
[1752363113283,3.35,160.35,160.34,3.57]
[1752363118892,4.88324079,160.35,160.34,3.57]
[1752363120999,11.11744079,160.35,160.34,3.57]
[1752363122297,7.76744079,160.35,160.33,3.57]
[1752363122501,4.88324079,160.34,160.33,3.57]
[1752363122701,4.88324079,160.34,160.32,3.57]
[1752363122702,11.11784079,160.34,160.32,3.57]
[1752363122898,4.88324079,160.33,160.32,3.57]
[1752363127105,4.88324079,160.33,160.32,9.8054]
[1752363128404,4.85324079,160.34,160.32,9.8054]
[1752363128600,4.85324079,160.34,160.33,3.3]
[1752363131106,3.32,160.34,160.33,3.3]
[1752363131904,3.32,160.34,160.33,9.535]
[1752363132203,11.08764079,160.35,160.33,9.535]
[1752363132420,4.85324079,160.35,160.34,3.3]
[1752363132810,4.85324079,160.35,160.34,9.5346]
[1752363133525,4.85324079,160.36,160.35,3.3]
[1752363140021,11.08704079,160.36,160.35,3.3]
[1752363141616,4.85324079,160.36,160.35,9.5342]
[1752363141822,3.32,160.36,160.35,9.5342]
[1752363142724,3.32,160.36,160.35,3.3]
[1752363142926,4.85324079,160.36,160.35,3.3]
[1752363147433,4.85324079,160.36,160.35,9.5342]
[1752363150828,4.85324079,160.37,160.36,6.2337]
[1752363151034,4.85324079,160.37,160.36,9.5337]
[1752363152134,1.53324079,160.37,160.36,9.5337]
[1752363152334,183.33324079,160.38,160.37,3.3]
[1752363152733,178.48,160.38,160.37,9.5334]
[1752363153039,3.32,160.4,160.38,3.3]
[1752363153235,4.85324079,160.4,160.38,3.3]
[1752363153434,3.32,160.39,160.38,3.3]
[1752363156238,3.32,160.39,160.38,9.533]
[1752363157241,3.54,160.4,160.39,3.62]
[1752363161944,5.07324079,160.4,160.39,3.62]
[1752363172245,5.07324079,160.4,160.39,9.8526]
[1752363172445,5.07324079,160.42,160.39,3.62]
[1752363172751,3.54,160.41,160.4,6.232]
[1752363172952,3.54,160.41,160.4,9.852]
[1752363174650,5.07324079,160.42,160.4,9.852]
[1752363174850,5.07324079,160.42,160.41,3.62]
[1752363175450,1.53324079,160.42,160.41,3.62]
[1752363175648,5.07324079,160.42,160.41,3.62]
[1752363178054,5.07324079,160.42,160.41,9.8519]
[1752363180352,3.54,160.42,160.41,9.8519]
[1752363180849,3.54,160.42,160.41,3.62]
[1752363182956,5.07324079,160.42,160.39,6.2326]
[1752363183155,3.54,160.43,160.4,5.15324079]
[1752363183345,3.54,160.43,160.41,3.62]
[1752363183549,3.54,160.43,160.42,3.62]
[1752363184444,3.54,160.43,160.42,9.8515]
[1752363184649,3.54,160.43,160.42,16.27705457]
[1752363184845,178.38,160.44,160.42,16.27705457]
[1752363185047,181.92,160.44,160.43,10.04555457]
[1752363185254,181.92,160.44,160.43,16.27665457]
[1752363190960,181.92,160.44,160.43,10.04555457]
[1752363195163,181.92,160.44,160.43,16.27665457]
[1752363200866,183.45324079,160.44,160.43,6.42555457]
[1752363202368,3.34,160.43,160.42,3.49]
[1752363202572,3.34,160.43,160.42,9.94568377]
[1752363202974,4.87203987,160.43,160.42,9.94568377]
[1752363204883,4.87203987,160.43,160.42,16.17718377]
[1752363210385,1.53203987,160.43,160.42,12.68718377]
[1752363212488,178.38,160.44,160.43,9.7211]
[1752363212785,181.72,160.44,160.43,16.17678377]
[1752363213387,3.34,160.44,160.43,16.17678377]
[1752363216684,4.87203987,160.44,160.43,16.17678377]
[1752363217596,4.87173118,160.44,160.43,16.17678377]
[1752363219994,3.34,160.44,160.43,16.17678377]
[1752363220289,1.53170782,160.45,160.44,9.8007]
[1752363220290,4.88170782,160.45,160.44,9.8007]
[1752363220484,4.88170782,160.45,160.44,16.25638377]
[1752363221990,4.88170782,160.45,160.44,9.8007]
[1752363226795,4.88169081,160.45,160.44,3.57]
[1752363227601,3.35,160.44,160.43,3.57]
[1752363227795,4.88169081,160.44,160.42,9.8013]
[1752363227999,4.88169081,160.43,160.42,6.2313]
[1752363228498,4.88169081,160.43,160.42,9.8013]
[1752363234599,4.88169081,160.43,160.41,9.8017]
[1752363234901,3.35,160.43,160.42,3.57]
[1752363235098,4.88169081,160.43,160.42,3.57]
[1752363236103,4.88169081,160.43,160.42,9.8015]
[1752363238704,3.35,160.42,160.4,5.23400311]
[1752363238904,4.88169081,160.41,160.4,3.57]
[1752363239601,3.35,160.41,160.4,3.57]
[1752363240098,3.35,160.41,160.4,9.8019]
[1752363240604,4.88169081,160.41,160.4,3.57]
[1752363240804,4.88169081,160.41,160.4,9.8022]
[1752363241806,3.35,160.41,160.4,9.8022]
[1752363242207,4.88169081,160.42,160.41,6.2319]
[1752363242400,4.88169081,160.42,160.41,9.8019]
[1752363242907,4.88169081,160.43,160.42,6.2312]
[1752363243101,3.35,160.43,160.42,9.8012]
[1752363243704,3.35,160.43,160.42,3.57]
[1752363243900,4.88169081,160.43,160.42,3.57]
[1752363244108,3.35,160.42,160.39,3.57]
[1752363244409,4.88169081,160.4,160.38,9.8029]
[1752363244607,4.88169081,160.39,160.38,9.8029]
[1752363246610,3.35,160.39,160.38,9.8029]
[1752363246913,4.88169081,160.39,160.38,9.8029]
[1752363251211,3.35,160.39,160.38,9.8029]
[1752363253310,538.44,160.47,160.38,9.8029]
[1752363253311,1.53169081,160.44,160.4,3.35]
[1752363253506,1.53169081,160.44,160.41,3.35]
[1752363253507,3.3,160.43,160.41,3.35]
[1752363253712,3.3,160.43,160.42,9.5815]
[1752363256014,3.3,160.44,160.43,9.5808]
[1752363257714,4.83169081,160.44,160.43,9.5808]
[1752363258914,4.83169081,160.44,160.38,5.23400311]
[1752363259215,3.3,160.38,160.35,5.23400311]
[1752363259415,3.3,160.38,160.35,6.76569392]
[1752363259605,1.53169081,160.39,160.35,6.76569392]
[1752363259812,4.83169081,160.39,160.37,3.35]
[1752363260114,4.83169081,160.39,160.38,6.233]
[1752363260313,4.83169081,160.39,160.38,9.583]
[1752363262215,3.3,160.39,160.38,9.583]
[1752363263516,4.83169081,160.4,160.39,9.5826]
[1752363263716,4.83169081,160.41,160.39,3.35]
[1752363264819,3.3,160.41,160.39,3.35]
[1752363265122,3.3,160.41,160.4,9.5822]
[1752363267311,181.68,160.42,160.41,9.5819]
[1752363268318,181.68,160.42,160.41,3.35]
[1752363270719,187.9115,160.42,160.41,3.35]
[1752363271114,184.6115,160.42,160.4,9.5821]
[1752363271313,3.3,160.41,160.4,9.5821]
[1752363272116,9.5319,160.41,160.4,3.35]
[1752363272421,3.3,160.41,160.4,3.35]
[1752363274422,3.3,160.41,160.4,9.5822]
[1752363275828,181.82,160.42,160.41,9.8119]
[1752363277027,178.38,160.42,160.41,9.8119]
[1752363277224,181.82,160.42,160.41,3.58]
[1752363279129,181.82,160.42,160.41,9.8119]
[1752363279326,178.38,160.42,160.41,9.8119]
[1752363282437,3.44,160.44,160.41,3.58]
[1752363284137,3.44,160.44,160.43,6.2311]
[1752363284442,3.44,160.44,160.43,9.8111]
[1752363285042,4.9716636,160.44,160.43,3.58]
[1752363289248,4.9716636,160.44,160.43,9.8111]
[1752363290347,3.44,160.44,160.43,9.8111]
[1752363292751,181.98,160.45,160.44,9.8107]
[1752363293645,183.5116636,160.45,160.44,9.8107]
[1752363296149,183.5116636,160.45,160.44,3.58]
[1752363296554,181.98,160.45,160.44,3.58]
[1752363296743,183.5116636,160.45,160.44,3.58]
[1752363300152,189.7419636,160.45,160.44,3.58]
[1752363300652,6.2309,160.44,160.42,6.2313]
[1752363300953,9.6709,160.44,160.43,3.58]
[1752363302051,11.2025636,160.44,160.43,3.58]
[1752363302454,1.5316636,160.44,160.39,5.21570355]
[1752363302656,4.9716636,160.4,160.39,3.58]
[1752363303048,4.9716636,160.4,160.39,6.2324]
[1752363303247,3.44,160.4,160.39,9.8124]
[1752363303655,3.44,160.4,160.39,3.58]
[1752363304252,3.44,160.4,160.39,9.8126]
[1752363305756,9.6722,160.4,160.39,3.58]
[1752363306852,3.44,160.4,160.39,3.58]
[1752363307257,3.44,160.4,160.39,9.8126]
[1752363309262,3.34,160.41,160.4,6.2322]
[1752363309455,9.5716,160.42,160.41,3.54]
[1752363310456,3.34,160.42,160.41,3.54]
[1752363310860,3.34,160.44,160.42,3.54]
[1752363311060,9.5709,160.44,160.42,3.54]
[1752363312160,9.5709,160.44,160.42,9.7714]
[1752363312363,9.5709,160.44,160.43,3.54]
[1752363313461,3.34,160.44,160.43,3.54]
[1752363316659,9.5707,160.44,160.43,3.54]
[1752363317557,11.1023636,160.44,160.43,3.54]
[1752363326866,3.34,160.43,160.41,3.54]
[1752363327062,4.8716636,160.42,160.41,3.54]
[1752363327258,11.1031636,160.42,160.41,3.54]
[1752363329958,9.5715,160.42,160.41,3.54]
[1752363330164,3.34,160.42,160.41,3.54]
[1752363331671,9.5715,160.42,160.41,3.54]
[1752363333165,3.34,160.42,160.41,3.54]
[1752363340670,9.5715,160.42,160.41,3.54]
[1752363343369,1.5316636,160.43,160.41,9.7719]
[1752363343571,3.4,160.43,160.42,3.56]
[1752363344972,6.2311,160.43,160.42,3.56]
[1752363345171,4.9316636,160.44,160.43,3.56]
[1752363345867,3.4,160.44,160.43,6.2311]
[1752363346068,3.4,160.44,160.43,3.56]
[1752363348574,3.4,160.44,160.43,9.7911]
[1752363351978,3.4,160.44,160.43,3.56]
[1752363352370,4.9316636,160.44,160.43,3.56]
[1752363353579,11.1623636,160.44,160.43,3.56]
[1752363360276,9.6307,160.44,160.43,3.56]
[1752363364483,11.1623636,160.44,160.43,3.56]
[1752363367684,9.6307,160.44,160.43,3.56]
[1752363371487,3.4,160.44,160.43,3.56]
[1752363375490,3.4,160.44,160.42,3.66]
[1752363375686,4.93163977,160.44,160.42,3.66]
[1752363375993,1.53163977,160.44,160.42,3.66]
[1752363376192,3.5,160.43,160.42,3.66]
[1752363388304,3.5,160.43,160.42,9.8915]
[1752363389908,3.5,160.43,160.42,3.66]
[1752363390904,3.5,160.43,160.41,8.89048648]
[1752363391108,3.5,160.43,160.4,8.89048648]
[1752363391301,3.5,160.43,160.4,3.66]
[1752363392302,6.2319,160.41,160.4,3.66]
[1752363392606,9.7319,160.41,160.4,3.66]
[1752363395207,3.5,160.41,160.4,3.66]
[1752363395402,3.5,160.41,160.4,9.8922]
[1752363396006,178.34,160.45,160.4,9.8922]
[1752363396202,3.43,160.42,160.41,3.44]
[1752363398208,9.6615,160.42,160.41,3.44]
[1752363400108,6.2315,160.42,160.41,3.44]
[1752363400407,9.6615,160.42,160.41,3.44]
[1752363402508,3.43,160.44,160.38,9.6729]
[1752363402714,3.43,160.44,160.39,3.44]
[1752363403503,6.2321,160.41,160.39,9.6726]
[1752363403705,3.43,160.4,160.39,6.2326]
[1752363404199,3.43,160.4,160.39,9.6726]
[1752363405411,3.43,160.42,160.41,3.44]
[1752363407117,9.6615,160.42,160.41,3.44]
[1752363411315,3.43,160.42,160.41,3.44]
[1752363413917,9.6615,160.42,160.41,3.44]
[1752363414117,3.43,160.44,160.37,3.44]
[1752363414517,6.2325,160.4,160.37,3.44]
[1752363414718,3.43,160.39,160.38,3.44]
[1752363416418,3.43,160.39,160.38,9.673]
[1752363417917,3.43,160.39,160.38,3.44]
[1752363419827,9.6626,160.39,160.38,3.44]
[1752363420116,3.43,160.39,160.38,3.44]
[1752363422915,3.43,160.39,160.38,9.673]
[1752363424122,3.43,160.4,160.39,6.2325]
[1752363424326,3.43,160.4,160.39,9.6725]
[1752363424525,3.43,160.41,160.4,3.44]
[1752363426531,3.43,160.41,160.4,9.6722]
[1752363426821,178.34,160.45,160.41,3.51]
[1752363426822,3.45,160.42,160.41,3.51]
[1752363431619,3.45,160.42,160.4,6.2322]
[1752363431620,3.45,160.44,160.39,6.2325]
[1752363431821,3.45,160.44,160.4,3.51]
[1752363433525,6.2319,160.41,160.4,3.51]
[1752363433725,9.6819,160.41,160.4,3.51]
[1752363450536,5.25124248,160.44,160.37,11.46378648]
[1752363450537,3.45,160.38,160.37,11.46378648]
[1752363450735,3.45,160.38,160.37,6.2333]
[1752363451036,3.45,160.38,160.37,9.7433]
[1752363451336,3.45,160.39,160.38,3.51]
[1752363451531,3.45,160.39,160.38,9.743]
[1752363451937,9.6824,160.4,160.38,9.743]
[1752363452137,9.6824,160.4,160.39,3.51]
[1752363453133,3.45,160.4,160.39,3.51]
[1752363453327,3.45,160.41,160.39,6.2326]
[1752363453532,3.45,160.41,160.4,3.51]
[1752363454039,9.6821,160.41,160.4,3.51]
[1752363461843,3.45,160.41,160.4,9.7422]
[1752363462736,9.8413,160.43,160.4,6.2322]
[1752363462940,9.8413,160.43,160.41,3.42]
[1752363463140,9.8413,160.43,160.41,9.6517]
[1752363463338,9.8409,160.44,160.42,3.42]
[1752363464241,9.8409,160.44,160.43,3.42]
[1752363468068,3.61,160.44,160.42,3.42]
[1752363468253,3.61,160.43,160.42,3.42]
[1752363468453,3.61,160.43,160.39,6.2324]
[1752363468854,3.61,160.43,160.4,3.42]
[1752363470652,3.61,160.41,160.4,3.42]
[1752363477264,9.8419,160.41,160.4,3.42]
[1752363479566,3.61,160.4,160.37,5.23380001]